[Event "Titled Tuesday Blitz April 26 Late 2022"]
[White "Swiercz, Dariusz"]
[Black "Ivanisevic, Ivan"]
[WhiteFideId "1126881"]
[BlackFideId "912417"]
[WhiteElo "2627"]
[BlackElo "2495"]
[Result "0-1"]
[Round "07"]
[TimeControl "180+1"]
[Date "2022.04.26"]
[WhiteClock "0:00:01"]
[BlackClock "0:00:19"]

1. d4 {[%clk 0:03:00]}  d5 {[%clk 0:02:58]} 2. Nf3 {[%clk 0:03:01]}  Nf6 {[%clk 0:02:58]} 3. c4 {[%clk 0:03:01]}  e6 {[%clk 0:02:58]} 4. g3 {[%clk 0:03:01]}  h6 {[%clk 0:02:58]} 5. Bg2 {[%clk 0:03:00]}  Bd6 {[%clk 0:02:59]} 6. O-O {[%clk 0:02:57]}  O-O {[%clk 0:02:59]} 7. b3 {[%clk 0:02:58]}  b6 {[%clk 0:02:51]} 8. Bb2 {[%clk 0:02:57]}  Bb7 {[%clk 0:02:49]} 9. Nc3 {[%clk 0:02:57]}  Nc6 {[%clk 0:02:48]} 10. Rc1 {[%clk 0:02:52]}  Ne7 {[%clk 0:02:48]} 11. Nb5 {[%clk 0:02:48]}  a6 {[%clk 0:02:44]} 12. Nxd6 {[%clk 0:02:47]}  cxd6 {[%clk 0:02:45]} 13. Qd3 {[%clk 0:02:31]}  dxc4 {[%clk 0:02:40]} 14. bxc4 {[%clk 0:02:31]}  b5 {[%clk 0:02:41]} 15. c5 {[%clk 0:02:14]}  Be4 {[%clk 0:02:40]} 16. Qa3 {[%clk 0:02:08]}  Ned5 {[%clk 0:02:25]} 17. cxd6 {[%clk 0:01:46]}  b4 {[%clk 0:02:24]} 18. Qa4 {[%clk 0:01:45]}  Qxd6 {[%clk 0:02:24]} 19. Ne5 {[%clk 0:01:33]}  Bxg2 {[%clk 0:02:20]} 20. Kxg2 {[%clk 0:01:33]}  Rfc8 {[%clk 0:02:18]} 21. Rc6 {[%clk 0:01:17]}  Rxc6 {[%clk 0:02:16]} 22. Qxc6 {[%clk 0:01:17]}  Qxc6 {[%clk 0:02:13]} 23. Nxc6 {[%clk 0:01:18]}  Rc8 {[%clk 0:02:13]} 24. Rc1 {[%clk 0:01:18]}  Kf8 {[%clk 0:01:59]} 25. a3 {[%clk 0:01:03]}  bxa3 {[%clk 0:01:41]} 26. Bxa3+ {[%clk 0:01:03]}  Ke8 {[%clk 0:01:41]} 27. f3 {[%clk 0:00:53]}  Nb6 {[%clk 0:01:19]} 28. e4 {[%clk 0:00:53]}  Nfd7 {[%clk 0:01:15]} 29. Bd6 {[%clk 0:00:42]}  f6 {[%clk 0:01:14]} 30. h4 {[%clk 0:00:38]}  h5 {[%clk 0:01:13]} 31. Kf2 {[%clk 0:00:37]}  Kf7 {[%clk 0:01:12]} 32. Ke2 {[%clk 0:00:32]}  a5 {[%clk 0:01:12]} 33. Ba3 {[%clk 0:00:31]}  a4 {[%clk 0:01:10]} 34. Kd3 {[%clk 0:00:28]}  g5 {[%clk 0:00:55]} 35. Rc2 {[%clk 0:00:19]}  gxh4 {[%clk 0:00:53]} 36. gxh4 {[%clk 0:00:20]}  f5 {[%clk 0:00:49]} 37. Bd6 {[%clk 0:00:12]}  Kf6 {[%clk 0:00:40]} 38. Be7+ {[%clk 0:00:10]}  Kf7 {[%clk 0:00:39]} 39. Bg5 {[%clk 0:00:09]}  a3 {[%clk 0:00:37]} 40. d5 {[%clk 0:00:08]}  fxe4+ {[%clk 0:00:34]} 41. fxe4 {[%clk 0:00:07]}  exd5 {[%clk 0:00:35]} 42. exd5 {[%clk 0:00:08]}  Nxd5 {[%clk 0:00:33]} 43. Rf2+ {[%clk 0:00:04]}  Kg7 {[%clk 0:00:32]} 44. Nd4 {[%clk 0:00:03]}  Nc5+ {[%clk 0:00:31]} 45. Kc4 {[%clk 0:00:03]}  Ne4+ {[%clk 0:00:31]} 46. Kxd5 {[%clk 0:00:04]}  Nxf2 {[%clk 0:00:30]} 47. Be3 {[%clk 0:00:03]}  Ng4 {[%clk 0:00:29]} 48. Bf4 {[%clk 0:00:03]}  a2 {[%clk 0:00:28]} 49. Nb3 {[%clk 0:00:04]}  Kf7 {[%clk 0:00:27]} 50. Kd4 {[%clk 0:00:04]}  Nf2 {[%clk 0:00:26]} 51. Bg3 {[%clk 0:00:03]}  Nd1 {[%clk 0:00:25]} 52. Bf4 {[%clk 0:00:04]}  Rc3 {[%clk 0:00:24]} 53. Na1 {[%clk 0:00:02]}  Rh3 {[%clk 0:00:23]} 54. Bg5 {[%clk 0:00:02]}  Nf2 {[%clk 0:00:20]} 55. Kc4 {[%clk 0:00:01]}  Rh1 {[%clk 0:00:19]} 0-1


[Site "https://www.chess.com"]

[Event "Titled Tuesday Blitz April 26 Late 2022"]
[White "Vidonyak, Roman"]
[Black "Martic, Ivan"]
[WhiteFideId "14100622"]
[BlackFideId "929301"]
[WhiteElo "2401"]
[BlackElo "2317"]
[Result "0-1"]
[Round "07"]
[TimeControl "180+1"]
[Date "2022.04.26"]
[WhiteClock "0:00:07"]
[BlackClock "0:00:44"]

1. d4 {[%clk 0:03:00]}  d5 {[%clk 0:02:56]} 2. c4 {[%clk 0:02:59]}  c6 {[%clk 0:02:57]} 3. Nf3 {[%clk 0:02:58]}  Nf6 {[%clk 0:02:57]} 4. Nc3 {[%clk 0:02:57]}  dxc4 {[%clk 0:02:54]} 5. a4 {[%clk 0:02:55]}  Bf5 {[%clk 0:02:54]} 6. e3 {[%clk 0:02:55]}  e6 {[%clk 0:02:54]} 7. Bxc4 {[%clk 0:02:54]}  Bb4 {[%clk 0:02:53]} 8. O-O {[%clk 0:02:54]}  O-O {[%clk 0:02:53]} 9. Nh4 {[%clk 0:02:52]}  Nbd7 {[%clk 0:02:51]} 10. h3 {[%clk 0:02:46]}  a5 {[%clk 0:02:45]} 11. Nxf5 {[%clk 0:02:45]}  exf5 {[%clk 0:02:46]} 12. Qf3 {[%clk 0:02:45]}  g6 {[%clk 0:02:46]} 13. g4 {[%clk 0:02:45]}  Nb6 {[%clk 0:02:28]} 14. Bd3 {[%clk 0:02:41]}  fxg4 {[%clk 0:01:58]} 15. hxg4 {[%clk 0:02:42]}  Nbd5 {[%clk 0:01:57]} 16. Nxd5 {[%clk 0:02:24]}  cxd5 {[%clk 0:01:55]} 17. g5 {[%clk 0:02:20]}  Ne4 {[%clk 0:01:53]} 18. Qg4 {[%clk 0:02:14]}  Nxg5 {[%clk 0:01:46]} 19. f4 {[%clk 0:01:58]}  Ne4 {[%clk 0:01:44]} 20. Bxe4 {[%clk 0:01:56]}  dxe4 {[%clk 0:01:45]} 21. f5 {[%clk 0:01:56]}  Rc8 {[%clk 0:01:42]} 22. f6 {[%clk 0:01:52]}  Qd5 {[%clk 0:01:35]} 23. Qh4 {[%clk 0:01:40]}  h5 {[%clk 0:01:31]} 24. b3 {[%clk 0:01:15]}  Rc2 {[%clk 0:01:25]} 25. Ba3 {[%clk 0:01:09]}  Rfc8 {[%clk 0:01:16]} 26. Bxb4 {[%clk 0:01:08]}  axb4 {[%clk 0:01:17]} 27. Qf4 {[%clk 0:00:56]}  Kh7 {[%clk 0:01:12]} 28. Rf2 {[%clk 0:00:41]}  Rxf2 {[%clk 0:01:09]} 29. Qxf2 {[%clk 0:00:37]}  Qxb3 {[%clk 0:01:08]} 30. Rf1 {[%clk 0:00:37]}  Rc2 {[%clk 0:01:06]} 31. Qf4 {[%clk 0:00:33]}  Qd3 {[%clk 0:00:58]} 32. Kh1 {[%clk 0:00:15]}  Qe2 {[%clk 0:00:57]} 33. Rg1 {[%clk 0:00:14]}  b3 {[%clk 0:00:48]} 34. Qg3 {[%clk 0:00:07]}  b2 {[%clk 0:00:44]} 0-1


[Site "https://www.chess.com"]

[Event "Titled Tuesday Blitz April 26 Late 2022"]
[White "Ward, Ieuan C"]
[Black "Spata, German"]
[WhiteFideId "406627"]
[BlackFideId "113026"]
[WhiteElo "2317"]
[BlackElo "2238"]
[Result "0-1"]
[Round "07"]
[TimeControl "180+1"]
[Date "2022.04.26"]
[WhiteClock "0:00:06"]
[BlackClock "0:00:26"]

1. d4 {[%clk 0:03:00]}  e6 {[%clk 0:02:58]} 2. c4 {[%clk 0:03:00]}  Bb4+ {[%clk 0:02:58]} 3. Nc3 {[%clk 0:02:59]}  f5 {[%clk 0:02:57]} 4. g3 {[%clk 0:02:57]}  Nf6 {[%clk 0:02:57]} 5. Bg2 {[%clk 0:02:57]}  O-O {[%clk 0:02:58]} 6. Nf3 {[%clk 0:02:58]}  d5 {[%clk 0:02:58]} 7. O-O {[%clk 0:02:57]}  c6 {[%clk 0:02:59]} 8. Ne5 {[%clk 0:02:48]}  Nbd7 {[%clk 0:02:58]} 9. Nxd7 {[%clk 0:02:34]}  Bxd7 {[%clk 0:02:58]} 10. Bg5 {[%clk 0:02:30]}  h6 {[%clk 0:02:57]} 11. Bxf6 {[%clk 0:02:27]}  Qxf6 {[%clk 0:02:57]} 12. e3 {[%clk 0:02:27]}  g5 {[%clk 0:02:50]} 13. Ne2 {[%clk 0:02:11]}  Bd6 {[%clk 0:02:46]} 14. cxd5 {[%clk 0:02:08]}  exd5 {[%clk 0:02:45]} 15. Qd3 {[%clk 0:02:02]}  f4 {[%clk 0:02:42]} 16. exf4 {[%clk 0:01:59]}  gxf4 {[%clk 0:02:42]} 17. Nxf4 {[%clk 0:01:56]}  Bxf4 {[%clk 0:02:41]} 18. gxf4 {[%clk 0:01:56]}  Qxf4 {[%clk 0:02:33]} 19. Rae1 {[%clk 0:01:43]}  Bf5 {[%clk 0:02:28]} 20. Qg3+ {[%clk 0:01:41]}  Qg5 {[%clk 0:02:23]} 21. f4 {[%clk 0:01:36]}  Qg7 {[%clk 0:02:11]} 22. Re7 {[%clk 0:01:29]}  Rf7 {[%clk 0:02:09]} 23. Rfe1 {[%clk 0:01:23]}  Raf8 {[%clk 0:02:06]} 24. Rxf7 {[%clk 0:01:08]}  Rxf7 {[%clk 0:02:05]} 25. Re5 {[%clk 0:01:03]}  Qxg3 {[%clk 0:01:49]} 26. hxg3 {[%clk 0:01:02]}  Kg7 {[%clk 0:01:44]} 27. Bf3 {[%clk 0:00:53]}  Kf6 {[%clk 0:01:40]} 28. Kf2 {[%clk 0:00:47]}  Rg7 {[%clk 0:01:39]} 29. Re8 {[%clk 0:00:43]}  Bg4 {[%clk 0:01:34]} 30. Rf8+ {[%clk 0:00:39]}  Ke7 {[%clk 0:01:34]} 31. Rh8 {[%clk 0:00:38]}  h5 {[%clk 0:01:29]} 32. Bxg4 {[%clk 0:00:34]}  hxg4 {[%clk 0:01:29]} 33. Rh4 {[%clk 0:00:32]}  Kf6 {[%clk 0:01:27]} 34. Rh6+ {[%clk 0:00:30]}  Kf5 {[%clk 0:01:24]} 35. Ke3 {[%clk 0:00:27]}  Re7+ {[%clk 0:01:21]} 36. Kd3 {[%clk 0:00:27]}  Re1 {[%clk 0:01:20]} 37. Rh5+ {[%clk 0:00:28]}  Kf6 {[%clk 0:01:16]} 38. Rh7 {[%clk 0:00:27]}  Rg1 {[%clk 0:01:13]} 39. Rxb7 {[%clk 0:00:27]}  Rxg3+ {[%clk 0:01:13]} 40. Ke2 {[%clk 0:00:27]}  Kf5 {[%clk 0:01:11]} 41. Rxa7 {[%clk 0:00:21]}  Kxf4 {[%clk 0:01:07]} 42. Rc7 {[%clk 0:00:18]}  Rg2+ {[%clk 0:01:04]} 43. Kf1 {[%clk 0:00:19]}  Rxb2 {[%clk 0:01:05]} 44. Rxc6 {[%clk 0:00:19]}  Rxa2 {[%clk 0:01:03]} 45. Rd6 {[%clk 0:00:16]}  Ke4 {[%clk 0:01:00]} 46. Kg1 {[%clk 0:00:15]}  Kxd4 {[%clk 0:00:59]} 47. Rg6 {[%clk 0:00:16]}  Re2 {[%clk 0:00:48]} 48. Rxg4+ {[%clk 0:00:16]}  Kd3 {[%clk 0:00:47]} 49. Kf1 {[%clk 0:00:15]}  Re5 {[%clk 0:00:45]} 50. Rg3+ {[%clk 0:00:14]}  Kd2 {[%clk 0:00:44]} 51. Rg2+ {[%clk 0:00:15]}  Kd3 {[%clk 0:00:42]} 52. Rg3+ {[%clk 0:00:15]}  Re3 {[%clk 0:00:29]} 53. Rg5 {[%clk 0:00:09]}  d4 {[%clk 0:00:29]} 54. Kf2 {[%clk 0:00:08]}  Re2+ {[%clk 0:00:29]} 55. Kf1 {[%clk 0:00:09]}  Re7 {[%clk 0:00:30]} 56. Rg3+ {[%clk 0:00:09]}  Kd2 {[%clk 0:00:29]} 57. Rg2+ {[%clk 0:00:09]}  Kc3 {[%clk 0:00:29]} 58. Rg3+ {[%clk 0:00:06]}  d3 {[%clk 0:00:29]} 59. Rg6 {[%clk 0:00:06]}  d2 {[%clk 0:00:27]} 60. Rc6+ {[%clk 0:00:06]}  Kb4 {[%clk 0:00:26]} 61. Rd6 {[%clk 0:00:06]}  Re1+ {[%clk 0:00:26]} 62. Kf2 {[%clk 0:00:06]}  d1=Q {[%clk 0:00:26]} 0-1


[Site "https://www.chess.com"]

[Event "Titled Tuesday Blitz April 26 Late 2022"]
[White "Xiong, Jeffery"]
[Black "Tristan, Leonardo"]
[WhiteFideId "2047640"]
[BlackFideId "113816"]
[WhiteElo "2727"]
[BlackElo "2404"]
[Result "1-0"]
[Round "07"]
[TimeControl "180+1"]
[Date "2022.04.26"]
[WhiteClock "0:02:21"]
[BlackClock "0:02:26"]

1. c4 {[%clk 0:03:00]}  e6 {[%clk 0:02:59]} 2. Nc3 {[%clk 0:03:00]}  d5 {[%clk 0:03:00]} 3. d4 {[%clk 0:03:00]}  a6 {[%clk 0:03:00]} 4. cxd5 {[%clk 0:02:55]}  exd5 {[%clk 0:03:01]} 5. Bf4 {[%clk 0:02:56]}  Nf6 {[%clk 0:03:01]} 6. e3 {[%clk 0:02:55]}  c5 {[%clk 0:03:02]} 7. Nge2 {[%clk 0:02:54]}  c4 {[%clk 0:03:02]} 8. Bg5 {[%clk 0:02:47]}  Be7 {[%clk 0:03:00]} 9. Nf4 {[%clk 0:02:47]}  Be6 {[%clk 0:03:00]} 10. Bxf6 {[%clk 0:02:36]}  Bxf6 {[%clk 0:03:00]} 11. Qf3 {[%clk 0:02:37]}  O-O {[%clk 0:02:49]} 12. Nfxd5 {[%clk 0:02:36]}  Bxd5 {[%clk 0:02:49]} 13. Qxd5 {[%clk 0:02:31]}  Qxd5 {[%clk 0:02:49]} 14. Nxd5 {[%clk 0:02:32]}  b5 {[%clk 0:02:48]} 15. Nxf6+ {[%clk 0:02:25]}  gxf6 {[%clk 0:02:49]} 16. Kd2 {[%clk 0:02:26]}  Nd7 {[%clk 0:02:47]} 17. b3 {[%clk 0:02:26]}  cxb3 {[%clk 0:02:31]} 18. axb3 {[%clk 0:02:27]}  Nb6 {[%clk 0:02:32]} 19. Be2 {[%clk 0:02:26]}  Nd5 {[%clk 0:02:32]} 20. Bf3 {[%clk 0:02:26]}  Rfd8 {[%clk 0:02:31]} 21. Rhc1 {[%clk 0:02:25]}  Rd6 {[%clk 0:02:27]} 22. Rc5 {[%clk 0:02:23]}  Rad8 {[%clk 0:02:27]} 23. Bxd5 {[%clk 0:02:23]}  Rxd5 {[%clk 0:02:28]} 24. Rxd5 {[%clk 0:02:24]}  Rxd5 {[%clk 0:02:29]} 25. Rxa6 {[%clk 0:02:25]}  Rh5 {[%clk 0:02:29]} 26. h3 {[%clk 0:02:22]}  Rg5 {[%clk 0:02:30]} 27. g3 {[%clk 0:02:22]}  Rf5 {[%clk 0:02:29]} 28. f4 {[%clk 0:02:22]}  Rd5 {[%clk 0:02:28]} 29. Rxf6 {[%clk 0:02:21]}  Kg7 {[%clk 0:02:27]} 30. Rc6 {[%clk 0:02:21]}  b4 {[%clk 0:02:26]} 31. Rb6 {[%clk 0:02:21]}  Rd8 {[%clk 0:02:25]} 32. Rxb4 {[%clk 0:02:21]}  Rb8 {[%clk 0:02:26]} 33. Rxb8 {[%clk 0:02:21]} 1-0


[Site "https://www.chess.com"]

[Event "Titled Tuesday Blitz April 26 Late 2022"]
[White "Yang, Kevin"]
[Black "Kohler, Aran"]
[WhiteFideId "30908485"]
[BlackFideId "1002856"]
[WhiteElo "2055"]
[BlackElo "2273"]
[Result "1-0"]
[Round "07"]
[TimeControl "180+1"]
[Date "2022.04.26"]
[WhiteClock "0:00:07"]
[BlackClock "0:00:01"]

1. d4 {[%clk 0:03:00]}  Nf6 {[%clk 0:02:58]} 2. c4 {[%clk 0:03:00]}  c5 {[%clk 0:02:58]} 3. Nf3 {[%clk 0:02:55]}  e6 {[%clk 0:02:58]} 4. d5 {[%clk 0:02:49]}  exd5 {[%clk 0:02:58]} 5. cxd5 {[%clk 0:02:49]}  d6 {[%clk 0:02:54]} 6. Nc3 {[%clk 0:02:48]}  a6 {[%clk 0:02:53]} 7. a4 {[%clk 0:02:47]}  g6 {[%clk 0:02:53]} 8. Bf4 {[%clk 0:02:42]}  Bg7 {[%clk 0:02:52]} 9. h4 {[%clk 0:02:41]}  h5 {[%clk 0:02:43]} 10. Nd2 {[%clk 0:02:40]}  O-O {[%clk 0:02:35]} 11. e3 {[%clk 0:02:39]}  Ng4 {[%clk 0:02:17]} 12. Be2 {[%clk 0:02:18]}  Ne5 {[%clk 0:02:16]} 13. f3 {[%clk 0:01:57]}  Nbd7 {[%clk 0:02:13]} 14. Nce4 {[%clk 0:01:43]}  Qe7 {[%clk 0:02:09]} 15. Qc2 {[%clk 0:01:29]}  f6 {[%clk 0:02:00]} 16. Rc1 {[%clk 0:01:09]}  Rb8 {[%clk 0:02:00]} 17. b4 {[%clk 0:01:05]}  b5 {[%clk 0:01:42]} 18. bxc5 {[%clk 0:00:56]}  Nxc5 {[%clk 0:01:37]} 19. Nxc5 {[%clk 0:00:53]}  dxc5 {[%clk 0:01:37]} 20. axb5 {[%clk 0:00:51]}  axb5 {[%clk 0:01:35]} 21. Qxc5 {[%clk 0:00:50]}  Qxc5 {[%clk 0:01:32]} 22. Rxc5 {[%clk 0:00:51]}  b4 {[%clk 0:01:31]} 23. Kf2 {[%clk 0:00:45]}  b3 {[%clk 0:01:26]} 24. Rb1 {[%clk 0:00:43]}  b2 {[%clk 0:01:22]} 25. Rc2 {[%clk 0:00:42]}  Bf5 {[%clk 0:01:20]} 26. e4 {[%clk 0:00:41]}  Rfc8 {[%clk 0:01:20]} 27. Rcxb2 {[%clk 0:00:29]}  Rxb2 {[%clk 0:01:18]} 28. Rxb2 {[%clk 0:00:30]}  Bd7 {[%clk 0:01:08]} 29. Rb7 {[%clk 0:00:27]}  Rd8 {[%clk 0:01:06]} 30. Bxe5 {[%clk 0:00:20]}  fxe5 {[%clk 0:01:06]} 31. Bb5 {[%clk 0:00:21]}  Bxb5 {[%clk 0:00:59]} 32. Rxb5 {[%clk 0:00:21]}  Bf8 {[%clk 0:00:59]} 33. Ke2 {[%clk 0:00:21]}  Be7 {[%clk 0:00:55]} 34. Nc4 {[%clk 0:00:21]}  Bxh4 {[%clk 0:00:55]} 35. Nxe5 {[%clk 0:00:20]}  Kg7 {[%clk 0:00:54]} 36. Rb6 {[%clk 0:00:20]}  Bf6 {[%clk 0:00:53]} 37. Rb7+ {[%clk 0:00:20]}  Kg8 {[%clk 0:00:51]} 38. Nxg6 {[%clk 0:00:20]}  Ra8 {[%clk 0:00:48]} 39. Nf4 {[%clk 0:00:19]}  Ra2+ {[%clk 0:00:47]} 40. Kd3 {[%clk 0:00:20]}  h4 {[%clk 0:00:46]} 41. Rb6 {[%clk 0:00:19]}  Be5 {[%clk 0:00:41]} 42. Ng6 {[%clk 0:00:19]}  Bg3 {[%clk 0:00:38]} 43. d6 {[%clk 0:00:18]}  Ra3+ {[%clk 0:00:30]} 44. Kc4 {[%clk 0:00:17]}  Ra7 {[%clk 0:00:29]} 45. e5 {[%clk 0:00:16]}  Kf7 {[%clk 0:00:27]} 46. Nxh4 {[%clk 0:00:15]}  Bxe5 {[%clk 0:00:24]} 47. Kd5 {[%clk 0:00:13]}  Bf6 {[%clk 0:00:23]} 48. Nf5 {[%clk 0:00:12]}  Ra5+ {[%clk 0:00:23]} 49. Ke4 {[%clk 0:00:12]}  Re5+ {[%clk 0:00:21]} 50. Kf4 {[%clk 0:00:12]}  Rd5 {[%clk 0:00:21]} 51. Ne3 {[%clk 0:00:11]}  Be5+ {[%clk 0:00:20]} 52. Ke4 {[%clk 0:00:11]}  Rxd6 {[%clk 0:00:20]} 53. Rb7+ {[%clk 0:00:10]}  Ke6 {[%clk 0:00:20]} 54. Rb4 {[%clk 0:00:08]}  Rc6 {[%clk 0:00:17]} 55. f4 {[%clk 0:00:07]}  Bd6 {[%clk 0:00:16]} 56. Rb5 {[%clk 0:00:07]}  Rc8 {[%clk 0:00:14]} 57. g4 {[%clk 0:00:07]}  Ra8 {[%clk 0:00:13]} 58. Rd5 {[%clk 0:00:04]}  Ra4+ {[%clk 0:00:12]} 59. Rd4 {[%clk 0:00:04]}  Ra5 {[%clk 0:00:12]} 60. f5+ {[%clk 0:00:04]}  Ke7 {[%clk 0:00:12]} 61. f6+ {[%clk 0:00:04]}  Ke6 {[%clk 0:00:12]} 62. Nf5 {[%clk 0:00:04]}  Be5 {[%clk 0:00:11]} 63. Rc4 {[%clk 0:00:03]}  Bxf6 {[%clk 0:00:11]} 64. Ne3 {[%clk 0:00:03]}  Be7 {[%clk 0:00:10]} 65. Rc6+ {[%clk 0:00:03]}  Kd7 {[%clk 0:00:10]} 66. Rg6 {[%clk 0:00:02]}  Ra4+ {[%clk 0:00:11]} 67. Kf3 {[%clk 0:00:03]}  Ra3 {[%clk 0:00:11]} 68. Kf4 {[%clk 0:00:03]}  Bd6+ {[%clk 0:00:10]} 69. Ke4 {[%clk 0:00:03]}  Ra4+ {[%clk 0:00:10]} 70. Kf3 {[%clk 0:00:04]}  Ra3 {[%clk 0:00:10]} 71. Rg7+ {[%clk 0:00:05]}  Ke6 {[%clk 0:00:10]} 72. Ke4 {[%clk 0:00:05]}  Ra4+ {[%clk 0:00:09]} 73. Kd3 {[%clk 0:00:06]}  Ra3+ {[%clk 0:00:09]} 74. Ke2 {[%clk 0:00:05]}  Ra2+ {[%clk 0:00:09]} 75. Kf3 {[%clk 0:00:06]}  Ra3 {[%clk 0:00:10]} 76. Rg5 {[%clk 0:00:06]}  Be7 {[%clk 0:00:08]} 77. Rf5 {[%clk 0:00:06]}  Bd8 {[%clk 0:00:07]} 78. Ke2 {[%clk 0:00:05]}  Ra2+ {[%clk 0:00:07]} 79. Kd1 {[%clk 0:00:05]}  Ra3 {[%clk 0:00:07]} 80. Ng2 {[%clk 0:00:05]}  Rg3 {[%clk 0:00:07]} 81. Nf4+ {[%clk 0:00:05]}  Kd7 {[%clk 0:00:04]} 82. Rd5+ {[%clk 0:00:05]}  Ke8 {[%clk 0:00:04]} 83. Ne6 {[%clk 0:00:04]}  Be7 {[%clk 0:00:03]} 84. g5 {[%clk 0:00:03]}  Bxg5 {[%clk 0:00:03]} 85. Nxg5 {[%clk 0:00:03]}  Rg2 {[%clk 0:00:03]} 86. Ne4 {[%clk 0:00:02]}  Ke7 {[%clk 0:00:02]} 87. Nd2 {[%clk 0:00:02]}  Rg1+ {[%clk 0:00:02]} 88. Kc2 {[%clk 0:00:02]}  Rg2 {[%clk 0:00:03]} 89. Rd3 {[%clk 0:00:03]}  Ke6 {[%clk 0:00:03]} 90. Re3+ {[%clk 0:00:03]}  Kd5 {[%clk 0:00:03]} 91. Kd3 {[%clk 0:00:04]}  Kd6 {[%clk 0:00:02]} 92. Nf3 {[%clk 0:00:05]}  Kc6 {[%clk 0:00:02]} 93. Nd4+ {[%clk 0:00:06]}  Kd5 {[%clk 0:00:02]} 94. Nf5 {[%clk 0:00:07]}  Rg1 {[%clk 0:00:01]} 95. Ng3 {[%clk 0:00:07]} 1-0


[Site "https://www.chess.com"]

[Event "Titled Tuesday Blitz April 26 Late 2022"]
[White "Yuan, Qingyu"]
[Black "Dubov, Daniil"]
[WhiteFideId "8609772"]
[BlackFideId "24126055"]
[WhiteElo "2359"]
[BlackElo "2791"]
[Result "0-1"]
[Round "07"]
[TimeControl "180+1"]
[Date "2022.04.26"]
[WhiteClock "0:00:04"]
[BlackClock "0:00:35"]

1. e4 {[%clk 0:03:00]}  c5 {[%clk 0:02:59]} 2. Nf3 {[%clk 0:03:00]}  e6 {[%clk 0:03:00]} 3. b3 {[%clk 0:03:00]}  d6 {[%clk 0:02:59]} 4. Bb2 {[%clk 0:03:00]}  Bd7 {[%clk 0:02:59]} 5. d4 {[%clk 0:02:57]}  cxd4 {[%clk 0:02:59]} 6. Nxd4 {[%clk 0:02:58]}  Nf6 {[%clk 0:02:59]} 7. Nd2 {[%clk 0:02:57]}  e5 {[%clk 0:02:52]} 8. Nf5 {[%clk 0:02:46]}  Nc6 {[%clk 0:02:43]} 9. Qf3 {[%clk 0:02:05]}  g6 {[%clk 0:02:18]} 10. Ne3 {[%clk 0:02:02]}  Nd4 {[%clk 0:02:17]} 11. Bxd4 {[%clk 0:01:41]}  exd4 {[%clk 0:02:18]} 12. Nd5 {[%clk 0:01:41]}  Nxd5 {[%clk 0:02:10]} 13. exd5 {[%clk 0:01:41]}  Bg7 {[%clk 0:02:06]} 14. Qe4+ {[%clk 0:01:31]}  Kf8 {[%clk 0:01:59]} 15. O-O-O {[%clk 0:01:26]}  d3 {[%clk 0:01:58]} 16. Qxd3 {[%clk 0:00:56]}  Qf6 {[%clk 0:01:47]} 17. c3 {[%clk 0:00:53]}  Bf5 {[%clk 0:01:28]} 18. Qd4 {[%clk 0:00:39]}  Qxd4 {[%clk 0:01:28]} 19. cxd4 {[%clk 0:00:39]}  Rc8+ {[%clk 0:01:28]} 20. Kb2 {[%clk 0:00:34]}  Bxd4+ {[%clk 0:01:27]} 21. Ka3 {[%clk 0:00:34]}  Bxf2 {[%clk 0:01:28]} 22. Bc4 {[%clk 0:00:19]}  Kg7 {[%clk 0:01:23]} 23. Rhf1 {[%clk 0:00:11]}  Be3 {[%clk 0:01:22]} 24. Rfe1 {[%clk 0:00:10]}  Bb6 {[%clk 0:01:01]} 25. Nf3 {[%clk 0:00:09]}  Rhe8 {[%clk 0:00:54]} 26. Kb2 {[%clk 0:00:08]}  a6 {[%clk 0:00:50]} 27. a4 {[%clk 0:00:08]}  Ba5 {[%clk 0:00:47]} 28. Rxe8 {[%clk 0:00:08]}  Rxe8 {[%clk 0:00:47]} 29. Nd4 {[%clk 0:00:07]}  Bg4 {[%clk 0:00:46]} 30. Rf1 {[%clk 0:00:07]}  Re4 {[%clk 0:00:44]} 31. Nc2 {[%clk 0:00:05]}  Be2 {[%clk 0:00:41]} 32. Rf2 {[%clk 0:00:02]}  Bxc4 {[%clk 0:00:40]} 33. bxc4 {[%clk 0:00:03]}  Rxc4 {[%clk 0:00:40]} 34. Kb3 {[%clk 0:00:04]}  Rc3+ {[%clk 0:00:41]} 35. Kb2 {[%clk 0:00:04]}  Rc5 {[%clk 0:00:39]} 36. Ne3 {[%clk 0:00:03]}  b5 {[%clk 0:00:35]} 37. axb5 {[%clk 0:00:03]}  axb5 {[%clk 0:00:36]} 38. Rf4 {[%clk 0:00:02]}  Bd2 {[%clk 0:00:35]} 39. Re4 {[%clk 0:00:02]}  Bxe3 {[%clk 0:00:35]} 40. Rxe3 {[%clk 0:00:03]}  Rxd5 {[%clk 0:00:36]} 41. Rd3 {[%clk 0:00:04]}  Rxd3 {[%clk 0:00:35]} 0-1


[Site "https://www.chess.com"]

[Event "Titled Tuesday Blitz April 26 Late 2022"]
[White "Zhurbinsky, David"]
[Black "Bas Mas, Jose Joaquin"]
[WhiteFideId "2072904"]
[BlackFideId "22219064"]
[WhiteElo "2561"]
[BlackElo "2212"]
[Result "0-1"]
[Round "07"]
[TimeControl "180+1"]
[Date "2022.04.26"]
[WhiteClock "0:00:03"]
[BlackClock "0:00:10"]

1. e4 {[%clk 0:02:59]}  c5 {[%clk 0:02:59]} 2. Nf3 {[%clk 0:02:59]}  e6 {[%clk 0:03:00]} 3. c4 {[%clk 0:03:00]}  a6 {[%clk 0:02:58]} 4. d4 {[%clk 0:03:00]}  cxd4 {[%clk 0:02:58]} 5. Nxd4 {[%clk 0:03:00]}  Qc7 {[%clk 0:02:57]} 6. Nc3 {[%clk 0:02:57]}  Nf6 {[%clk 0:02:58]} 7. Be2 {[%clk 0:02:56]}  Be7 {[%clk 0:02:55]} 8. O-O {[%clk 0:02:55]}  O-O {[%clk 0:02:54]} 9. Be3 {[%clk 0:02:55]}  d6 {[%clk 0:02:54]} 10. Rc1 {[%clk 0:02:55]}  Nbd7 {[%clk 0:02:54]} 11. f3 {[%clk 0:02:52]}  b6 {[%clk 0:02:54]} 12. Qd2 {[%clk 0:02:52]}  Bb7 {[%clk 0:02:54]} 13. Rfd1 {[%clk 0:02:53]}  Rac8 {[%clk 0:02:54]} 14. b3 {[%clk 0:02:51]}  Qb8 {[%clk 0:02:53]} 15. Bf1 {[%clk 0:02:52]}  Rfe8 {[%clk 0:02:53]} 16. Qf2 {[%clk 0:02:51]}  Bf8 {[%clk 0:02:49]} 17. Nde2 {[%clk 0:02:47]}  Bc6 {[%clk 0:02:41]} 18. g3 {[%clk 0:02:35]}  g6 {[%clk 0:02:40]} 19. Bg2 {[%clk 0:02:33]}  Bg7 {[%clk 0:02:31]} 20. h3 {[%clk 0:02:24]}  h5 {[%clk 0:02:06]} 21. f4 {[%clk 0:02:20]}  Nc5 {[%clk 0:02:00]} 22. Bxc5 {[%clk 0:01:56]}  dxc5 {[%clk 0:01:59]} 23. e5 {[%clk 0:01:53]}  Nh7 {[%clk 0:01:47]} 24. Bxc6 {[%clk 0:01:52]}  Rxc6 {[%clk 0:01:48]} 25. Rd7 {[%clk 0:01:47]}  Rc7 {[%clk 0:01:43]} 26. Rxc7 {[%clk 0:01:07]}  Qxc7 {[%clk 0:01:42]} 27. Ne4 {[%clk 0:01:07]}  Bf8 {[%clk 0:01:39]} 28. Rd1 {[%clk 0:01:03]}  Rd8 {[%clk 0:01:37]} 29. Qe1 {[%clk 0:01:00]}  Be7 {[%clk 0:01:33]} 30. N2c3 {[%clk 0:00:56]}  Rd4 {[%clk 0:01:29]} 31. Rxd4 {[%clk 0:00:43]}  cxd4 {[%clk 0:01:29]} 32. Ne2 {[%clk 0:00:42]}  d3 {[%clk 0:01:03]} 33. Nc1 {[%clk 0:00:30]}  Bc5+ {[%clk 0:00:50]} 34. Kh2 {[%clk 0:00:24]}  h4 {[%clk 0:00:39]} 35. Nxd3 {[%clk 0:00:21]}  hxg3+ {[%clk 0:00:39]} 36. Qxg3 {[%clk 0:00:18]}  Be7 {[%clk 0:00:39]} 37. Qe3 {[%clk 0:00:14]}  Nf8 {[%clk 0:00:36]} 38. Qd4 {[%clk 0:00:13]}  Nd7 {[%clk 0:00:25]} 39. Ndf2 {[%clk 0:00:13]}  g5 {[%clk 0:00:21]} 40. Ng4 {[%clk 0:00:04]}  Kg7 {[%clk 0:00:14]} 41. Qg1 {[%clk 0:00:03]}  Kf8 {[%clk 0:00:10]} 0-1


[Site "https://www.chess.com"]